bitfinex-derivatives/quotes_BTCF0:USTF0_20250318
["timestamp","ask_amount","ask_price","bid_price","bid_amount"]
[1742286216957,0.11018035,83170.0,83169.0,0.6411467]
[1742286217668,0.10018035,83170.0,83169.0,0.6411467]
[1742286218365,0.00018035,83170.0,83169.0,0.6411467]
[1742286218663,0.09018035,83170.0,83169.0,0.6411467]
[1742286219255,0.00018035,83170.0,83169.0,0.6411467]
[1742286225257,0.1154,83184.0,83182.0,0.1202279]
[1742286225454,0.03004,83183.0,83182.0,0.1202279]
[1742286225657,0.28604,83183.0,83182.0,0.1202279]
[1742286225860,0.52974,83183.0,83182.0,0.6219279]
[1742286226969,0.52974,83183.0,83182.0,0.63462998]
[1742286227375,0.27374,83183.0,83182.0,0.63462998]
[1742286227665,0.24374,83183.0,83182.0,0.63462998]
[1742286231271,4e-05,83183.0,83182.0,0.63462998]
[1742286231568,0.00018035,83191.0,83190.0,0.1202163]
[1742286231870,0.24078035,83191.0,83190.0,0.8848163]
[1742286232166,0.25302232,83191.0,83190.0,0.8848163]
[1742286233766,0.01242232,83191.0,83190.0,0.8848163]
[1742286235867,0.3608,83220.0,83211.0,0.120186]
[1742286236074,0.3168,83212.0,83211.0,0.120186]
[1742286236263,0.5103,83212.0,83211.0,0.120186]
[1742286236463,0.5103,83212.0,83211.0,0.632086]
[1742286236764,0.2502,83219.0,83218.0,0.1201759]
[1742286236963,0.36102035,83220.0,83219.0,0.1201744]
[1742286237167,0.37098035,83220.0,83219.0,0.1201744]
[1742286237373,0.01018035,83220.0,83219.0,0.1201744]
[1742286237670,0.01018035,83220.0,83219.0,0.38412121]
[1742286238069,0.01018035,83220.0,83219.0,0.64472121]
[1742286238667,0.01906391,83220.0,83219.0,0.64472121]
[1742286240875,0.00906391,83220.0,83219.0,0.64472121]
[1742286242177,0.00018035,83220.0,83219.0,0.64472121]
[1742286242680,0.00927359,83220.0,83219.0,0.64472121]
[1742286242868,0.00018035,83220.0,83219.0,0.64472121]
[1742286243572,0.11018035,83220.0,83219.0,0.64472121]
[1742286243775,0.11050035,83220.0,83219.0,0.52454681]
[1742286244682,0.11050035,83220.0,83219.0,0.64472121]
[1742286244876,0.11050035,83220.0,83219.0,0.52454681]
[1742286245183,0.11050035,83220.0,83219.0,0.64472121]
[1742286245779,0.35170035,83220.0,83219.0,0.64472121]
[1742286247876,0.35138035,83220.0,83219.0,0.64472121]
[1742286249182,0.35170035,83220.0,83219.0,0.64472121]
[1742286250485,0.2468,83224.0,83223.0,0.1201687]
[1742286250880,0.2468,83224.0,83223.0,0.6415687]
[1742286251079,0.3608,83238.0,83224.0,0.0600836]
[1742286251383,0.5051,83237.0,83236.0,0.1201499]
[1742286251590,0.5251,83237.0,83236.0,0.1201499]
[1742286252881,4e-05,83244.0,83243.0,0.1201398]
[1742286253191,0.03,83244.0,83243.0,0.1201398]
[1742286253789,0.2872,83244.0,83243.0,0.1201398]
[1742286254287,0.7882,83244.0,83243.0,0.1201398]
[1742286254477,0.9083383,83244.0,83243.0,0.1201398]
[1742286255284,0.7882,83244.0,83243.0,0.13243022]
[1742286256689,0.79706701,83244.0,83243.0,0.13243022]
[1742286256891,0.7882,83244.0,83243.0,0.13243022]
[1742286257397,0.9083383,83244.0,83243.0,0.01229042]
[1742286257584,0.1201513,83235.0,83234.0,0.11108866]
[1742286257783,0.1201567,83232.0,83230.0,0.1201582]
[1742286258091,0.2448,83231.0,83230.0,0.13260584]
[1742286258287,0.7825,83231.0,83230.0,0.13260584]
[1742286258684,0.9026571,83231.0,83230.0,0.01244734]
[1742286258887,0.12016,83229.0,83224.0,0.1201665]
[1742286259191,0.28,83229.0,83228.0,0.13260858]
[1742286259394,0.5277,83229.0,83228.0,0.12034164]
[1742286261986,0.5277,83229.0,83228.0,0.13308713]
[1742286264097,0.783,83229.0,83228.0,0.13308713]
[1742286264397,0.90316,83229.0,83228.0,0.00018024]
[1742286272196,0.783,83229.0,83228.0,0.00018024]
[1742286272898,0.6075,83234.0,83231.0,0.120156]
[1742286273099,0.2643,83233.0,83232.0,0.2407]
[1742286273305,0.7731,83233.0,83232.0,0.4825]
[1742286273495,0.7731,83233.0,83232.0,0.6026557]
[1742286274195,0.7731,83233.0,83232.0,0.4825]
[1742286274697,0.8932542,83233.0,83232.0,0.4825]
[1742286275202,0.7731,83233.0,83232.0,0.4825]
[1742286275399,0.7731,83233.0,83232.0,0.6026557]
[1742286275592,0.5243,83233.0,83232.0,0.6026557]
[1742286275794,4e-05,83237.0,83236.0,0.1201499]
[1742286275995,0.26,83237.0,83236.0,0.1201499]
[1742286276194,0.26,83237.0,83236.0,0.6423499]
[1742286280907,0.50304,83240.0,83239.0,0.1201456]
[1742286281102,0.76304,83240.0,83239.0,0.3776456]
[1742286281408,0.76304,83240.0,83239.0,0.6368456]
[1742286282007,0.26,83240.0,83239.0,0.6368456]
[1742286283015,0.00011965,83245.0,83241.0,0.0600708]
[1742286283219,0.00011965,83245.0,83244.0,0.4809383]
[1742286283513,0.00011965,83245.0,83244.0,1.2432383]
[1742286283903,0.00902668,83245.0,83244.0,1.2432383]
[1742286284309,0.00011965,83245.0,83244.0,1.2432383]
[1742286284625,0.3113598,83257.0,83254.0,0.120123]
[1742286284814,0.1201223,83256.0,83254.0,0.0600613]
[1742286285115,0.24,83256.0,83255.0,0.1201224]
[1742286285317,0.24,83256.0,83255.0,0.13248704]
[1742286285609,0.24,83256.0,83255.0,0.64428704]
[1742286285813,0.24,83256.0,83255.0,0.89488704]
[1742286286910,0.7495,83256.0,83255.0,0.89488704]
[1742286287214,0.24,83256.0,83255.0,0.89488704]
[1742286289104,0.24,83256.0,83255.0,0.64428704]
[1742286289306,0.24,83256.0,83255.0,0.64428714]
[1742286290707,0.24,83256.0,83255.0,0.52416464]
[1742286291314,0.24,83256.0,83255.0,0.64428714]
[1742286293109,0.24,83256.0,83255.0,0.52416464]
[1742286293723,0.24,83256.0,83255.0,0.64428714]
[1742286294711,0.24,83256.0,83255.0,0.52416464]
[1742286294912,0.360121,83256.0,83255.0,0.52416464]
[1742286295207,0.475401,83256.0,83255.0,0.01236464]
[1742286295406,0.1201268,83252.0,83251.0,0.2506]
[1742286295623,0.3901268,83252.0,83251.0,0.2506]
[1742286295820,0.8995268,83252.0,83251.0,0.2506]
[1742286296217,0.8995268,83252.0,83251.0,0.01237539]
[1742286296426,0.1201326,83248.0,83247.0,0.00018024]
[1742286296618,0.3901326,83248.0,83247.0,0.00018024]
[1742286296814,0.7849,83248.0,83247.0,0.01248852]
[1742286297016,0.7849,83248.0,83247.0,0.12031424]
[1742286297325,0.7849,83248.0,83247.0,0.13293945]
[1742286297514,0.7849,83248.0,83247.0,0.61983945]
[1742286300218,0.27,83248.0,83247.0,0.61983945]
[1742286301027,0.7809,83248.0,83247.0,0.61983945]
[1742286302826,0.7809,83248.0,83247.0,0.98063945]
[1742286303025,0.27,83248.0,83247.0,0.98063945]
[1742286303215,4e-05,83250.0,83249.0,0.1201311]
[1742286303618,4e-05,83250.0,83249.0,0.8930311]
[1742286304030,0.5093,83254.0,83253.0,0.1201254]
[1742286304230,0.7693,83254.0,83253.0,0.1201254]
[1742286304529,0.7693,83254.0,83253.0,0.6319254]
[1742286304919,0.12544,83267.0,83264.0,0.1201095]
[1742286305118,0.3908,83265.0,83262.0,0.1201114]
[1742286305318,0.2504,83264.0,83263.0,0.2585]
[1742286305515,0.2504,83264.0,83263.0,0.3786109]
[1742286306120,0.3504,83264.0,83263.0,0.6446109]
[1742286307724,0.6125,83264.0,83263.0,0.6446109]
[1742286309435,0.11552,83273.0,83269.0,0.0600511]
[1742286309633,1.11542,83273.0,83272.0,0.1200979]
[1742286310237,1.11542,83273.0,83272.0,0.6208979]
[1742286311439,4e-05,83277.0,83276.0,0.1200922]
[1742286311738,4e-05,83277.0,83276.0,0.6197922]
[1742286312041,0.5041,83280.0,83279.0,0.1200878]
[1742286312443,0.2533,83280.0,83279.0,0.6197878]
[1742286312739,0.0600282,83301.0,83296.0,0.1200633]
[1742286312922,0.1200648,83295.0,83294.0,0.1200657]
[1742286313125,0.4000648,83295.0,83294.0,0.2431]
[1742286313726,0.66980007,83295.0,83294.0,0.2431]
[1742286314141,0.92060007,83295.0,83294.0,0.2431]
[1742286314658,0.92060007,83295.0,83294.0,0.25530914]
[1742286317233,0.1200763,83287.0,83286.0,0.00018013]
[1742286317436,0.3600763,83287.0,83286.0,0.00018013]
[1742286317642,1.1277763,83287.0,83286.0,0.00018013]
[1742286317842,1.1277763,83287.0,83286.0,0.01235279]
[1742286318129,1.1277763,83287.0,83286.0,0.00018013]
[1742286318338,1.1277763,83287.0,83286.0,0.50588013]
[1742286318745,1.0077,83287.0,83286.0,0.50588013]
[1742286319149,1.0077,83287.0,83286.0,0.51828387]
[1742286319536,1.1277763,83287.0,83286.0,0.51828387]
[1742286327249,1.1277763,83287.0,83286.0,0.00018013]
[1742286327452,0.1200979,83272.0,83271.0,0.2427]
[1742286327647,0.3600979,83272.0,83271.0,0.5005]
[1742286327951,1.1215979,83272.0,83271.0,0.5005]
[1742286328334,1.1215979,83272.0,83260.0,0.22217732]
[1742286328535,0.1201138,83261.0,83260.0,0.11108866]
[1742286328741,0.1801752,83259.0,83258.0,0.00018013]
[1742286328940,0.3400585,83259.0,83258.0,0.01242076]
[1742286329443,0.3390585,83259.0,83258.0,0.01242076]
[1742286329657,0.8550585,83259.0,83258.0,0.01242076]
[1742286330044,0.796,83259.0,83258.0,0.01242076]
[1742286330437,0.796,83259.0,83258.0,0.13253886]
[1742286330641,0.795,83259.0,83258.0,0.13253886]
[1742286330848,0.5355,83259.0,83258.0,0.63143886]
[1742286331150,0.4809087,83265.0,83261.0,0.1201133]
[1742286331351,0.2565,83262.0,83261.0,0.1201133]
[1742286331652,0.2665,83262.0,83261.0,0.1201133]
[1742286332342,0.2665,83262.0,83261.0,0.1221133]
[1742286333551,0.01,83262.0,83261.0,0.1221133]
[1742286334057,0.3608,83265.0,83264.0,0.1201095]
[1742286334443,0.36084,83265.0,83264.0,0.1201095]
[1742286334753,0.1201107,83264.0,83261.0,0.001]
[1742286334950,0.9019107,83264.0,83261.0,0.1221129]
[1742286335155,0.2443,83263.0,83262.0,0.1201124]
[1742286335354,0.5243,83263.0,83262.0,0.1201124]
[1742286335657,0.7848,83263.0,83262.0,0.1201124]
[1742286336356,0.9049109,83263.0,83262.0,0.1201124]
[1742286336748,0.9049109,83263.0,83262.0,0.1211124]
[1742286337848,0.9049109,83263.0,83262.0,0.1221124]
[1742286339557,0.11604,83265.0,83262.0,0.0620561]
[1742286339762,0.34604,83265.0,83264.0,0.1201095]
[1742286340160,0.346,83265.0,83264.0,0.3766095]
[1742286344246,0.8531,83265.0,83260.0,0.060057]
[1742286344451,0.8531,83265.0,83263.0,0.1201097]
[1742286344749,0.8531,83265.0,83263.0,0.1201109]
[1742286344948,0.973208,83265.0,83264.0,0.2457]
[1742286345157,1.334008,83265.0,83264.0,0.2457]
[1742286345358,1.2139,83265.0,83264.0,0.2457]
[1742286346359,1.2139,83265.0,83264.0,0.4988]
[1742286346563,1.2139,83265.0,83264.0,0.6189095]
[1742286346858,0.346,83265.0,83264.0,0.6189095]
[1742286347058,0.346,83265.0,83264.0,0.8767095]
[1742286349757,0.6021,83265.0,83264.0,0.8767095]
[1742286350848,0.722208,83265.0,83264.0,0.4988]
[1742286351453,0.982708,83265.0,83264.0,0.4988]
[1742286351658,0.8626,83265.0,83264.0,0.4988]
[1742286351850,0.982708,83265.0,83264.0,0.4988]
[1742286356454,0.1201167,83259.0,83258.0,0.01242076]
[1742286356759,0.7409167,83259.0,83258.0,0.01242076]
[1742286357059,0.8567167,83259.0,83258.0,0.01261917]
[1742286357255,1.1228167,83259.0,83258.0,0.00018013]
[1742286357649,1.1228167,83259.0,83258.0,0.01575087]
[1742286357852,1.3716167,83259.0,83258.0,0.00218013]
[1742286359053,1.3716167,83259.0,83258.0,0.01540764]
[1742286362955,0.1201427,83241.0,83236.0,0.1201487]
[1742286363266,0.4760627,83241.0,83240.0,0.3608]
[1742286363763,0.35592,83241.0,83240.0,0.3608]
[1742286363966,0.60522,83241.0,83240.0,0.3608]
[1742286364166,0.86732,83241.0,83240.0,0.3608]
[1742286364568,0.9874627,83241.0,83240.0,0.603]
[1742286365154,0.9874627,83241.0,83240.0,0.61856611]
[1742286365367,0.9874627,83241.0,83240.0,0.25776611]
[1742286365563,0.9874627,83241.0,83240.0,0.2422]
[1742286365766,0.9874627,83241.0,83240.0,0.001]
[1742286365961,0.1201528,83234.0,83232.0,0.00018013]
[1742286366160,1.0222742,83233.0,83232.0,0.00018013]
[1742286366359,1.2522742,83233.0,83232.0,0.00018013]
[1742286366956,1.2522742,83233.0,83232.0,0.01548422]
[1742286367172,1.2522742,83233.0,83232.0,0.00018013]
[1742286367760,1.26876934,83233.0,83232.0,0.00018013]
[1742286368374,0.0600852,83222.0,83214.0,0.1202206]
[1742286368577,0.11612,83221.0,83215.0,0.2472]
[1742286368866,0.38612,83221.0,83220.0,0.120173]
[1742286369073,0.38612,83221.0,83220.0,0.13542117]
[1742286369272,0.5181,83230.0,83220.0,0.50694817]
[1742286369461,0.5181,83230.0,83226.0,0.1201635]
[1742286369462,0.11638024,83229.0,83226.0,0.1201635]
[1742286369665,0.00018024,83229.0,83228.0,0.1201614]
[1742286369969,0.4137,83240.0,83228.0,0.4898]
[1742286370273,0.1162,83239.0,83236.0,0.2402981]
[1742286370476,0.3862,83239.0,83237.0,0.7397]
[1742286371171,0.5063458,83239.0,83237.0,0.75558345]
[1742286371373,0.6332,83239.0,83237.0,0.75558345]
[1742286371569,0.6382,83239.0,83237.0,0.75558345]
[1742286371769,0.522,83239.0,83237.0,0.75558345]
[1742286371975,0.1162,83238.0,83237.0,0.75558345]
[1742286372174,0.3562,83238.0,83237.0,0.75558345]
[1742286372973,0.476347,83238.0,83237.0,0.75558345]
[1742286373877,0.480347,83238.0,83237.0,0.75558345]
[1742286374071,0.3602,83238.0,83237.0,0.75558345]
[1742286376080,0.480347,83238.0,83237.0,0.49868345]
[1742286376280,0.480347,83238.0,83237.0,0.4828]
[1742286376583,0.982247,83238.0,83237.0,0.4828]
[1742286376777,0.982247,83238.0,83234.0,0.01527692]
[1742286377078,0.1201542,83233.0,83232.0,0.242]
[1742286377279,0.3901542,83233.0,83232.0,0.4916]
[1742286377481,0.8920542,83233.0,83232.0,0.4916]
[1742286378276,0.8920542,83233.0,83232.0,0.50701206]
[1742286380170,0.8960542,83233.0,83232.0,0.4916]
[1742286380778,0.8960542,83233.0,83232.0,0.2496]
[1742286381182,0.8960542,83233.0,83232.0,0.4996]
[1742286382780,0.3941542,83233.0,83232.0,0.4996]
[1742286383086,0.3941542,83233.0,83232.0,0.7507]
[1742286383988,0.274,83233.0,83232.0,0.7507]
[1742286384587,0.3941542,83233.0,83232.0,0.7507]
[1742286385286,0.3941542,83233.0,83232.0,0.4996]
[1742286385495,0.9113542,83233.0,83232.0,0.4996]
[1742286392882,1.0274742,83233.0,83232.0,0.4996]
[1742286394094,0.9113542,83233.0,83232.0,0.4996]
[1742286394394,1.0274342,83233.0,83232.0,0.4996]
[1742286399806,0.1201557,83232.0,83231.0,4e-05]
[1742286400108,0.1201571,83231.0,83230.0,0.00018024]
[1742286400306,0.8394571,83231.0,83230.0,0.00022024]
[1742286400907,0.85500523,83231.0,83230.0,0.00022024]
[1742286402311,0.85800523,83231.0,83230.0,0.00022024]
[1742286408103,0.85800523,83231.0,83230.0,0.00018024]
[1742286409904,0.85500523,83231.0,83230.0,0.00018024]
[1742286410112,0.86000523,83231.0,83230.0,0.00018024]
[1742286412414,0.11608,83233.0,83232.0,98.37063907]
[1742286412614,1.2378342,83233.0,83232.0,98.3285429]
[1742286412814,1.25345916,83233.0,83232.0,98.3285429]
[1742286413011,1.25345916,83233.0,83232.0,98.80094673]
[1742286413406,1.25345916,83233.0,83232.0,98.75885056]
[1742286413809,1.25945916,83233.0,83232.0,98.75885056]
[1742286414218,1.26445916,83233.0,83232.0,98.75885056]
[1742286414605,0.15125333,83233.0,83232.0,98.75885056]
[1742286414805,0.26697333,83233.0,83232.0,99.11965056]
[1742286415010,0.26701333,83233.0,83232.0,99.11965056]
[1742286415701,0.38716753,83233.0,83232.0,99.11965056]
[1742286416915,0.38716753,83233.0,83232.0,99.13515898]
[1742286417511,0.38724753,83233.0,83232.0,99.13515898]
[1742286420316,0.38724753,83233.0,83232.0,99.11965056]
[1742286425219,0.38728753,83233.0,83232.0,99.11965056]
[1742286426019,0.15125333,83233.0,83232.0,99.11965056]
[1742286426223,0.26713333,83233.0,83232.0,99.11965056]
[1742286426718,0.15125333,83233.0,83232.0,99.11965056]
[1742286426920,0.12688,83233.0,83232.0,99.23980626]
[1742286427513,0.12688,83233.0,83232.0,99.11965056]
[1742286427715,0.12688,83233.0,83232.0,99.23980626]
[1742286427917,0.011,83233.0,83232.0,99.23980626]
[1742286428221,0.11588,83242.0,83241.0,0.1201427]
[1742286428423,0.11588,83242.0,83241.0,0.4809427]
[1742286428812,0.00018024,83246.0,83242.0,0.1201411]
[1742286429025,0.02018024,83246.0,83245.0,0.4809369]
[1742286429215,0.11584,83250.0,83249.0,0.1201304]
[1742286429416,0.13584,83250.0,83249.0,0.1201304]
[1742286429618,0.02,83250.0,83249.0,0.3667304]
[1742286429810,0.0600592,83258.0,83250.0,0.1201287]
[1742286430015,0.2301773,83258.0,83257.0,0.3608]
[1742286431529,0.2301773,83258.0,83257.0,0.37582733]
[1742286431923,0.23918785,83258.0,83257.0,0.3608]
[1742286432130,0.75268785,83258.0,83257.0,0.3608]
[1742286432327,1.09844785,83258.0,83257.0,0.3608]
[1742286434026,0.58494785,83258.0,83257.0,0.3608]
[1742286435033,0.46482975,83258.0,83257.0,0.3608]
[1742286435231,0.40477055,83258.0,83257.0,0.3608]
[1742286436221,0.52488865,83258.0,83257.0,0.3608]
[1742286437229,0.40477055,83258.0,83257.0,0.3608]
[1742286439329,0.28,83258.0,83257.0,0.4809196]
[1742286439534,0.28,83258.0,83257.0,0.3608]
[1742286440125,0.4001181,83258.0,83257.0,0.8619]
[1742286442028,0.40925351,83258.0,83257.0,0.8619]
[1742286442324,1.17675351,83258.0,83257.0,0.8619]
[1742286444645,0.28913541,83258.0,83257.0,0.8619]
[1742286445130,0.28,83258.0,83257.0,0.8619]
[1742286446741,0.4001181,83258.0,83257.0,0.8619]
[1742286447531,0.28,83258.0,83257.0,0.8619]
[1742286447739,0.28,83258.0,83257.0,0.9820196]
[1742286448434,0.28,83258.0,83257.0,0.8619]
[1742286448634,0.28,83258.0,83257.0,0.9820196]
[1742286449536,0.28,83258.0,83257.0,1.4820196]
[1742286449737,0.28,83258.0,83257.0,1.3619]
[1742286450344,0.4001181,83258.0,83257.0,1.3619]
[1742286453838,0.28,83258.0,83257.0,1.4820196]
[1742286456054,0.28,83258.0,83257.0,1.8428196]
[1742286460556,0.0001799,83266.0,83265.0,0.120108]
[1742286460853,0.0301799,83266.0,83265.0,1.244508]
[1742286461357,0.0001799,83266.0,83265.0,1.244508]
[1742286461751,4e-05,83269.0,83268.0,0.1201037]
[1742286461961,4e-05,83269.0,83268.0,0.9895037]
[1742286462256,0.11548,83282.0,83279.0,0.1200874]
[1742286462455,0.26548,83282.0,83281.0,0.480885]
[1742286462657,0.26548,83282.0,83281.0,0.3608]
[1742286462854,0.26548,83282.0,83281.0,0.996885]
[1742286463051,0.3855635,83282.0,83281.0,0.996885]
[1742286463253,0.3855635,83282.0,83281.0,0.8768]
[1742286463457,0.39454456,83282.0,83281.0,0.8768]
[1742286464260,0.64834456,83282.0,83281.0,0.8768]
[1742286464449,0.90814456,83282.0,83281.0,0.8768]
[1742286465153,0.90814456,83282.0,83281.0,0.89153977]
[1742286465352,0.90814456,83282.0,83281.0,0.8768]
[1742286467960,0.90814456,83282.0,83281.0,1.2376]
[1742286468353,0.78802106,83282.0,83281.0,1.2376]
[1742286468658,0.15,83282.0,83281.0,1.357685]
[1742286468859,4e-05,83284.0,83282.0,0.0600417]
[1742286469063,0.11544,83289.0,83283.0,0.8749821]
[1742286469254,0.13544,83289.0,83288.0,0.3608]
[1742286469457,0.02,83289.0,83288.0,0.3608]
[1742286469663,0.11544,83294.0,83288.0,0.3608]
[1742286469863,0.27544,83294.0,83293.0,0.3608]
[1742286470253,0.3955062,83294.0,83293.0,0.3608]
[1742286472851,0.16,83294.0,83293.0,0.3608]
[1742286473056,0.2800662,83294.0,83293.0,0.3608]
[1742286474167,0.2800662,83294.0,83293.0,0.8824]
[1742286474565,0.16,83294.0,83293.0,0.8824]
[1742286474868,4e-05,83296.0,83295.0,0.1200648]
[1742286475268,0.0600216,83310.0,83304.0,0.1200507]
[1742286475464,0.1700216,83310.0,83309.0,0.7216]
[1742286476065,0.1700216,83310.0,83309.0,0.73638297]
[1742286477668,0.4243216,83310.0,83309.0,0.73638297]
[1742286478673,0.1700216,83310.0,83309.0,0.73638297]
[1742286480275,0.11,83310.0,83309.0,1.37282757]
[1742286481168,0.2300432,83310.0,83309.0,1.37282757]
[1742286481359,0.2300432,83310.0,83309.0,1.25278297]
[1742286481563,0.2300432,83310.0,83309.0,1.37282757]
[1742286481766,0.11,83310.0,83309.0,1.37282757]
[1742286482465,2.50068,83313.0,83312.0,0.1200403]
[1742286482664,2.51004,83313.0,83312.0,0.1200403]
[1742286482867,2.51004,83313.0,83312.0,0.6420403]
[1742286483074,2.51,83313.0,83312.0,0.6420403]
[1742286483373,2.6300388,83313.0,83312.0,0.6420403]
[1742286484569,2.51,83313.0,83312.0,0.6420403]
[1742286485169,2.6300388,83313.0,83312.0,0.6420403]
[1742286485368,2.51,83313.0,83312.0,0.6420403]
[1742286485976,2.5,83313.0,83312.0,0.6420403]
[1742286486678,2.5,83313.0,83312.0,1.6420403]
[1742286489573,2.6200388,83313.0,83312.0,1.6420403]
[1742286489890,2.5,83313.0,83312.0,1.6420403]
[1742286490075,2.6200388,83313.0,83312.0,1.6420403]
[1742286490481,2.5,83313.0,83312.0,1.6420403]
[1742286506091,2.5,83313.0,83312.0,2.3636403]
[1742286508192,3.2514,83313.0,83312.0,2.3636403]
[1742286512384,2.5,83313.0,83312.0,2.3636403]
[1742286516890,3.0044,83313.0,83312.0,2.3636403]
[1742286518491,3.0044,83313.0,83312.0,1.6420403]
[1742286518695,3.0044,83313.0,83312.0,2.3636403]
[1742286519604,3.2844,83313.0,83312.0,2.3636403]
[1742286520505,3.0044,83313.0,83312.0,2.3636403]
[1742286521905,2.5,83313.0,83312.0,2.3636403]
[1742286522204,2.7659,83313.0,83312.0,2.3636403]
[1742286522503,2.7659,83313.0,83312.0,2.37764863]
[1742286524004,2.5,83313.0,83312.0,2.37764863]
[1742286524607,2.5,83313.0,83312.0,2.3636403]
[1742286529112,2.5,83313.0,83312.0,2.37764536]
[1742286530113,2.5,83313.0,83312.0,2.3636403]
[1742286542628,1.9312763,83313.0,83312.0,2.4785603]
[1742286545529,1.52866145,83313.0,83312.0,2.4785603]
[1742286547030,1.52866145,83313.0,83312.0,2.8901603]
[1742286547231,1.52862145,83313.0,83312.0,2.8901603]
[1742286548326,1.52862145,83313.0,83312.0,2.8941603]
[1742286548524,2.30082145,83313.0,83312.0,2.8941603]
[1742286548829,2.30082145,83313.0,83312.0,2.8981603]
[1742286549029,2.30082145,83313.0,83312.0,2.8941603]
[1742286549226,2.30082145,83313.0,83312.0,2.8981603]
[1742286549820,2.30082145,83313.0,83312.0,2.8921603]
[1742286550026,2.30082145,83313.0,83312.0,2.7782403]
[1742286552835,2.30082145,83313.0,83312.0,2.3666403]
[1742286554829,2.65086025,83313.0,83312.0,1.8446403]
[1742286555027,2.65086025,83313.0,83312.0,1.7246]
[1742286555722,2.76570025,83313.0,83312.0,1.7246]
[1742286556136,2.76570025,83313.0,83312.0,1.7226]
[1742286556634,2.76570025,83313.0,83312.0,1.7216]
[1742286556932,2.64566145,83313.0,83312.0,1.7216]
[1742286557139,2.64566145,83313.0,83312.0,1.8416403]
[1742286557729,2.64566145,83313.0,83312.0,2.3556403]
[1742286557931,2.53082145,83313.0,83312.0,2.2356]
[1742286558130,2.30082145,83313.0,83312.0,2.3556403]
[1742286558327,2.30082145,83313.0,83312.0,2.0946403]
[1742286558526,2.30082145,83313.0,83312.0,1.8416403]
[1742286559038,2.53082145,83313.0,83312.0,1.8416403]
[1742286559336,2.64574145,83313.0,83312.0,1.8416403]
[1742286560134,2.76578025,83313.0,83312.0,1.7216]
[1742286561421,2.64574145,83313.0,83312.0,1.7216]
[1742286561632,2.64574145,83313.0,83312.0,1.8416403]
[1742286561836,2.64582145,83313.0,83312.0,2.2197]
[1742286562031,2.64582145,83313.0,83312.0,1.7216]
[1742286562839,2.64582145,83313.0,83312.0,1.8416403]
[1742286563237,2.76586025,83313.0,83312.0,2.3405403]
[1742286567135,2.76586025,83313.0,83312.0,1.7216]
[1742286579060,0.060026,83304.0,83293.0,0.3608]
[1742286579257,0.1200648,83295.0,83294.0,0.5037]
[1742286579447,0.4751048,83295.0,83294.0,0.5037]
[1742286579849,0.9796048,83295.0,83294.0,0.5037]
[1742286581147,1.2334048,83295.0,83294.0,0.5037]
[1742286582454,0.4751048,83295.0,83294.0,0.751]
[1742286582759,0.4781048,83295.0,83294.0,0.751]
[1742286584559,0.1200763,83287.0,83286.0,0.00018013]
[1742286584750,0.5052763,83287.0,83286.0,0.26568013]
[1742286584954,1.2400763,83287.0,83286.0,0.26568013]
[1742286586161,1.2410763,83287.0,83286.0,0.26568013]
[1742286586761,1.25008885,83287.0,83286.0,0.26568013]
[1742286592669,0.76688885,83287.0,83286.0,0.26568013]
[1742286592856,0.51528885,83287.0,83286.0,0.26568013]
[1742286595671,0.28001255,83287.0,83286.0,0.26568013]
[1742286595866,0.39501255,83287.0,83286.0,0.38575793]
[1742286596281,0.39501255,83287.0,83286.0,0.64305793]
[1742286597680,0.28001255,83287.0,83286.0,0.64305793]
[1742286599374,0.11512,83290.0,83286.0,0.64305793]
[1742286599375,0.1200611,83298.0,83287.0,0.1200763]
[1742286599682,0.11508,83297.0,83294.0,0.1200657]
[1742286599885,0.4751425,83297.0,83295.0,0.8960638]
[1742286600078,0.1200633,83296.0,83295.0,0.776]
[1742286600276,0.26,83296.0,83295.0,0.956097]
[1742286600883,0.11512,83299.0,83298.0,0.1200605]
[1742286601083,0.11508,83299.0,83298.0,0.1200605]
[1742286601384,0.11508,83299.0,83298.0,0.6318605]
[1742286601579,0.235139,83299.0,83298.0,0.5118]
[1742286603184,0.120059,83299.0,83298.0,0.5118]
[1742286603579,0.0600283,83301.0,83298.0,0.5118]
[1742286603776,0.4600844,83301.0,83300.0,0.3608]
[1742286604282,0.9713844,83301.0,83300.0,0.3608]
[1742286607794,0.4600844,83301.0,83300.0,0.3608]
[1742286608188,0.7259844,83301.0,83300.0,0.3608]
[1742286608390,0.4600844,83301.0,83300.0,0.3608]
[1742286609895,0.28,83301.0,83300.0,0.4808576]
[1742286610093,0.28,83301.0,83300.0,0.3608]
[1742286610591,0.28,83301.0,83300.0,0.4808576]
[1742286610992,0.28,83301.0,83300.0,0.9866576]
[1742286611798,0.00021976,83303.0,83302.0,0.1200547]
[1742286612288,1.52862145,83313.0,83311.0,0.1200405]
[1742286612490,1.52862145,83313.0,83312.0,1.2409403]
[1742286613093,1.52862145,83313.0,83312.0,1.25570248]
[1742286615487,0.01374642,83318.0,83312.0,1.25570248]
[1742286615488,0.0234568,83324.0,83323.0,0.1200244]
[1742286615702,0.05997262,83333.0,83323.0,0.4808244]
[1742286616003,0.1670521,83329.0,83325.0,0.1200216]
[1742286616302,0.047036,83329.0,83325.0,0.1200216]
[1742286616503,0.047036,83329.0,83325.0,0.8815216]
[1742286616998,0.047036,83329.0,83325.0,0.7615]
[1742286617297,0.52338836,83326.0,83325.0,0.5119]
[1742286617497,1.03578836,83326.0,83325.0,0.5119]
[1742286618299,0.40336826,83326.0,83325.0,0.6319216]
[1742286618506,0.28828826,83326.0,83325.0,0.6319216]
[1742286621996,0.28828826,83326.0,83325.0,0.8822216]
[1742286623308,0.55088826,83326.0,83325.0,0.8822216]
[1742286625599,0.28828826,83326.0,83325.0,1.2430216]
[1742286625805,0.02378747,83326.0,83325.0,1.2430216]
[1742286626996,0.02378747,83326.0,83325.0,1.123]
[1742286627201,0.25380757,83326.0,83325.0,1.2430216]
[1742286627401,0.13378747,83326.0,83325.0,1.2430216]
[1742286628602,0.25380757,83326.0,83325.0,1.2430216]
[1742286628805,0.49950757,83326.0,83325.0,1.2430216]
[1742286629111,0.75350757,83326.0,83325.0,1.2430216]
[1742286629614,0.13378747,83326.0,83325.0,1.2430216]
[1742286630313,0.38908747,83326.0,83325.0,1.2430216]
[1742286632112,0.02378747,83326.0,83325.0,1.2430216]
[1742286633614,0.27048747,83326.0,83325.0,1.2430216]
[1742286633816,0.02378747,83326.0,83325.0,1.2430216]
[1742286635210,0.27048747,83326.0,83325.0,1.2430216]